[Event "34th MPL National U14G-ch 2022"]
[Site "Ahmedabad"]
[Date "2022.05.13"]
[Round "9.7"]
[White "Aashi Upadhyay"]
[Black "Sneha Halder"]
[Result "1/2-1/2"]
[ECO "A01"]
[WhiteElo "1266"]
[BlackElo "1557"]
[Annotator "NA RC COMBH"]
[PlyCount "95"]
[EventDate "2022.05.09"]
[EventType "swiss"]
[EventCountry "IND"]
[SourceTitle "playchess.com"]
[Source "ChessBase"]
[SourceQuality "1"]
[TimeControl "5400+30"]

1. b3 {[%emt 0:00:10]} e5 {[%emt 0:00:11]} 2. Bb2 {[%emt 0:00:05]} d6 {[%emt 0:00:06]} 3. e3 {[%emt 0:00:04]} Bf5 {[%emt 0:00:31]} 4. Nf3 {[%emt 0:00:30]} Nd7 {[%emt 0:02:05]} 5. c4 {[%emt 0:00:39]} g6 {[%emt 0:01:10]} 6. d4 {[%emt 0:02:24]} Bg7 {[%emt 0:00:48]} 7. d5 {[%emt 0:02:39]} Qe7 {[%emt 0:00:33]} 8. Nc3 {[%emt 0:01:29]} g5 {[%emt 0:00:23]} 9. h3 {[%emt 0:06:54]} h5 {[%emt 0:01:23]} 10. e4 {[%emt 0:02:18]} Bg6 {[%emt 0:01:30]} 11. Bd3 {[%emt 0:00:46]} Nc5 {[%emt 0:00:53]} 12. Bc2 {[%emt 0:01:25]} g4 {[%emt 0:02:26]} 13. hxg4 {[%emt 0:02:04]} hxg4 {[%emt 0:00:10]} 14. Rxh8 {[%emt 0:00:04]} Bxh8 {[%emt 0:00:05]} 15. Nd2 {[%emt 0:01:05]} Qh4 {[%emt 0:00:56]} 16. Qe2 {[%emt 0:01:05]} Qh1+ {[%emt 0:01:19]} 17. Qf1 {[%emt 0:00:11]} Qxf1+ {[%emt 0:00:15]} 18. Kxf1 {[%emt 0:00:08]} Bg7 {[%emt 0:00:20]} 19. b4 {[%emt 0:01:41]} Nd7 {[%emt 0:00:09]} 20. Nb5 {[%emt 0:01:51]} Kd8 {[%emt 0:01:19]} 21. Ke2 {[%emt 0:02:34]} a6 {[%emt 0:00:19]} 22. Nc3 {[%emt 0:00:09]} Ngf6 {[%emt 0:00:18]} 23. a3 {[%emt 0:03:44]} Ke7 {[%emt 0:00:29]} 24. Rh1 {[%emt 0:00:48]} Nh5 {[%emt 0:01:30]} 25. g3 {[%emt 0:01:36]} Rh8 {[%emt 0:00:15]} 26. Rg1 {[%emt 0:03:23]} Nhf6 {[%emt 0:00:54]} 27. Nd1 {[%emt 0:02:11]} a5 {[%emt 0:02:41]} 28. Ne3 {[%emt 0:05:08]} Rh2 {[%emt 0:01:13]} 29. Nef1 {[%emt 0:03:09]} Rh3 {[%emt 0:00:09]} 30. Ne3 {[%emt 0:01:01]} Nh7 {[%emt 0:00:30]} 31. Nf5+ {[%emt 0:15:01]} Bxf5 {[%emt 0:00:28]} 32. exf5 {[%emt 0:00:01]} Nhf6 {[%emt 0:00:28]} 33. Ne4 {[%emt 0:02:40]} Nxe4 {[%emt 0:01:55]} 34. Bxe4 {[%emt 0:00:04]} Nb6 {[%emt 0:02:09]} 35. Rc1 {[%emt 0:02:41]} axb4 {[%emt 0:03:33]} 36. axb4 {[%emt 0:00:10]} Rh8 {[%emt 0:00:42]} 37. Kd3 {[%emt 0:05:51]} Ra8 {[%emt 0:00:32]} 38. Ra1 {[%emt 0:00:15]} Rxa1 {[%emt 0:00:47]} 39. Bxa1 {[%emt 0:00:03]} Kf6 {[%emt 0:00:05]} 40. c5 {[%emt 0:03:48]} Nc8 {[%emt 0:00:26]} 41. Kc4 {[%emt 0:01:10]} Bh6 {[%emt 0:03:32]} 42. Bc3 {[%emt 0:01:12]} Bc1 {[%emt 0:00:11]} 43. Kb5 {[%emt 0:01:41]} Kg5 {[%emt 0:03:48]} 44. c6 {[%emt 0:01:25]} bxc6+ {[%emt 0:00:44]} 45. Kxc6 {[%emt 0:03:24]} Na7+ {[%emt 0:00:03]} 46. Kb7 {[%emt 0:00:19]} Nb5 {[%emt 0:00:01]} 47. Be1 {[%emt 0:00:21]} Bb2 {[%emt 0:02:25]} 48. Kc6 {[%emt 0:01:23]} 1/2-1/2

[Event "34th MPL National U14G-ch 2022"]
[Site "Ahmedabad"]
[Date "2022.05.13"]
[Round "9.8"]
[White "Yashvi Jain"]
[Black "Jeevika S"]
[Result "1/2-1/2"]
[ECO "D36"]
[WhiteElo "1362"]
[BlackElo "1433"]
[Annotator "NA RC COMBH"]
[PlyCount "61"]
[EventDate "2022.05.09"]
[EventType "swiss"]
[EventCountry "IND"]
[SourceTitle "playchess.com"]
[Source "ChessBase"]
[SourceQuality "1"]
[TimeControl "5400+30"]

1. d4 {[%emt 0:00:24]} d5 {[%emt 0:00:13]} 2. c4 {[%emt 0:00:09]} e6 {[%emt 0:00:05]} 3. Nc3 {[%emt 0:00:18]} Nf6 {[%emt 1:31:42]} 4. cxd5 {[%emt 0:00:07]} exd5 {[%emt 0:00:00]} 5. Bg5 {[%emt 0:00:07]} Be7 {[%emt 0:00:00]} 6. e3 {[%emt 0:00:19]} c6 {[%emt 0:00:00]} 7. Bd3 {[%emt 0:00:16]} O-O {[%emt 0:00:00]} 8. Qc2 {[%emt 0:00:08]} h6 {[%emt 0:00:00]} 9. Bh4 {[%emt 0:00:07]} Be6 {[%emt 0:00:00]} 10. Nge2 {[%emt 0:00:27]} Nh5 {[%emt 0:00:00]} 11. Bxe7 {[%emt 0:04:42]} Qxe7 {[%emt 0:00:00]} 12. O-O {[%emt 0:00:36]} Nd7 {[%emt 0:00:00]} 13. f3 {[%emt 0:03:06]} f5 {[%emt 0:00:00]} 14. Rab1 {[%emt 0:01:25]} Qg5 {[%emt 0:00:00]} 15. e4 {[%emt 0:06:23]} fxe4 {[%emt 0:00:00]} 16. fxe4 {[%emt 0:00:22]} Bh3 {[%emt 0:00:00]} 17. Ng3 {[%emt 0:16:32]} Nxg3 {[%emt 0:00:00]} 18. hxg3 {[%emt 0:00:04]} Be6 {[%emt 0:00:00]} 19. exd5 {[%emt 0:04:48]} Bxd5 {[%emt 0:00:00]} 20. Nxd5 {[%emt 0:05:53]} cxd5 {[%emt 0:00:00]} 21. Qe2 {[%emt 0:14:38]} Rfe8 {[%emt 0:00:00]} 22. Qf3 {[%emt 0:08:44]} Rf8 {[%emt 0:00:00]} 23. Bf5 {[%emt 0:02:39]} Nf6 {[%emt 0:00:00]} 24. Rbe1 {[%emt 0:02:30]} Rae8 {[%emt 0:00:00]} 25. Qf4 {[%emt 0:05:17]} Qxf4 {[%emt 0:00:00]} 26. gxf4 {[%emt 0:00:08]} Ne4 {[%emt 0:00:00]} 27. Bd7 {[%emt 0:02:55]} Re7 {[%emt 0:00:00]} 28. Ba4 {[%emt 0:00:20]} Rd8 {[%emt 0:00:00]} 29. Bb3 {[%emt 0:00:53]} Kf8 {[%emt 0:00:00]} 30. Bc2 {[%emt 0:02:13]} Rc8 {[%emt 0:00:37]} 31. Bd3 {[%emt 0:00:25]} 1/2-1/2

[Event "34th MPL National U14G-ch 2022"]
[Site "Ahmedabad"]
[Date "2022.05.13"]
[Round "10.1"]
[White "Roy Aanya"]
[Black "Mrittika Mallick"]
[Result "*"]
[ECO "B92"]
[WhiteElo "1560"]
[BlackElo "1982"]
[Annotator "TA"]
[PlyCount "35"]
[EventDate "2022.05.09"]
[EventType "swiss"]
[EventCountry "IND"]
[SourceTitle "playchess.com"]
[Source "ChessBase"]
[SourceQuality "1"]
[TimeControl "5400+30"]

{[%evp 17,35,0,0,8,58,-15,-18,-37,-28,-54,-45,-58,0,0,0,0,0,16,5,7]} 1. e4 {[%emt 0:00:03]} c5 {[%emt 0:01:01]} 2. Nf3 {[%emt 0:00:06]} d6 {[%emt 0:00:08]} 3. d4 {[%emt 0:00:06]} cxd4 {[%emt 0:00:07]} 4. Nxd4 {[%emt 0:00:03]} Nf6 {[%emt 0:00:12]} 5. Nc3 {[%emt 0:00:06]} a6 {[%emt 0:00:06]} 6. Be2 {[%emt 0:00:07]} e5 {[%emt 1:31:56]} 7. Nb3 {[%emt 0:00:10]} Be7 {[%emt 0:00:26]} 8. O-O {[%emt 0:00:10]} O-O {[%emt 0:00:20]} 9. Kh1 {[%emt 0:00:07]} Nbd7 {[%emt 0:00:27]} 10. a4 {[%emt 0:00:34] B92: Sicilian Najdorf: 6 Be2.} b6 {[%emt 0:01:05]} (10... Re8) (10... Re8 $11) 11. f4 {[%emt 1:34:28]} (11. f3 $14) 11... Bb7 $11 {[%emt 0:01:06]} 12. Bf3 {[%emt 0:00:50]} Rc8 {[%emt 0:05:09]} 13. Qe1 {[%emt 0:03:55]} Qc7 {[%emt 0:05:29] [#]} 14. g4 $146 {[%emt 0:11:48][%cal Bg2g4,Bg4g5][%mdl 32]} ({Predecessor:} 14. f5 Rfd8 15. Bg5 Nc5 16. Nd2 h6 17. Bh4 Nh7 18. Bxe7 Qxe7 19. h4 Nf6 20. g4 d5 21. exd5 Nxd5 22. Kh2 Nxc3 23. Bxb7 Nxb7 24. bxc3 Rxc3 {0-1 (24) Marecek,M-Cmiel,P Czechoslovakia 1989}) 14... exf4 {[%emt 0:08:38]} (14... d5 15. exd5 Bb4) (14... d5 $1 $15 15. exd5 Bb4) 15. g5 {[%emt 1:18:32] The position is equal.} Ne8 {[%emt 0:00:38]} 16. Bxf4 {[%emt 0:02:42]} Ne5 {[%emt 0:01:13]} 17. Bg2 {[%emt 0:06:58]} g6 {[%emt 0:04:29]} 18. Nd4 {[%emt 0:07:22] Weighted Error Value: White=0.23 (precise) /Black=0.16 (very precise)} *

[Event "34th MPL National U14G-ch 2022"]
[Site "Ahmedabad"]
[Date "2022.05.13"]
[Round "10.2"]
[White "Anupam M Sreekumar"]
[Black "Pragnya H G"]
[Result "1/2-1/2"]
[ECO "C54"]
[WhiteElo "1673"]
[BlackElo "1605"]
[Annotator "NA RC COMBH"]
[PlyCount "95"]
[EventDate "2022.05.09"]
[EventType "swiss"]
[EventCountry "IND"]
[SourceTitle "playchess.com"]
[Source "ChessBase"]
[SourceQuality "1"]
[TimeControl "5400+30"]

1. e4 {[%emt 0:00:09]} e5 {[%emt 0:02:05]} 2. Nf3 {[%emt 0:00:29]} Nc6 {[%emt 0:00:06]} 3. Bc4 {[%emt 0:00:16]} Bc5 {[%emt 0:00:07]} 4. c3 {[%emt 0:00:11]} Nf6 {[%emt 0:00:05]} 5. d3 {[%emt 0:00:08]} d6 {[%emt 0:00:07]} 6. O-O {[%emt 0:00:47]} O-O {[%emt 0:00:06]} 7. h3 {[%emt 0:00:25]} h6 {[%emt 0:00:29]} 8. Re1 {[%emt 0:00:20]} Bb6 {[%emt 0:00:22]} 9. a4 {[%emt 0:00:34]} a5 {[%emt 0:00:05]} 10. Nbd2 {[%emt 0:02:27]} Ne7 {[%emt 0:00:15]} 11. Nf1 {[%emt 0:01:52]} Ng6 {[%emt 0:00:06]} 12. Ng3 {[%emt 0:05:43]} c6 {[%emt 0:01:18]} 13. Bb3 {[%emt 0:03:27]} Bc7 {[%emt 0:00:32]} 14. d4 {[%emt 0:02:20]} Re8 {[%emt 0:03:33]} 15. Bc2 {[%emt 0:03:13]} Be6 {[%emt 0:02:26]} 16. Be3 {[%emt 0:03:14]} d5 {[%emt 0:02:36]} 17. dxe5 {[%emt 0:07:30]} Bxe5 {[%emt 0:04:22]} 18. Nxe5 {[%emt 1:06:25]} Nxe5 {[%emt 0:00:06]} 19. Bd4 {[%emt 0:00:00]} Ng6 {[%emt 0:02:14]} 20. Qf3 {[%emt 0:00:00]} Nh4 21. Qd3 {[%emt 0:00:00]} dxe4 22. Nxe4 {[%emt 0:00:00]} Nxe4 23. Qxe4 {[%emt 0:00:00]} Bf5 24. Qxe8+ {[%emt 0:00:00]} Qxe8 25. Rxe8+ {[%emt 0:00:00]} Rxe8 26. Bxf5 {[%emt 0:00:00]} Nxf5 27. Bb6 {[%emt 0:00:00]} Re2 28. Rb1 {[%emt 0:00:00]} Nd6 29. b4 {[%emt 0:00:00]} Ra2 30. bxa5 {[%emt 0:00:00]} Rxa4 31. Rd1 {[%emt 0:00:00]} Nc4 32. Rd8+ {[%emt 0:00:00]} Kh7 33. Rd7 {[%emt 0:00:00]} Nxa5 34. Rxf7 {[%emt 0:00:00]} Kg8 35. Rc7 {[%emt 0:00:00]} Nb3 36. Rxb7 {[%emt 0:00:00]} Rc4 37. Bc7 {[%emt 0:00:00]} Rxc3 38. Be5 {[%emt 0:00:00]} Rc1+ 39. Kh2 {[%emt 0:00:00]} Nc5 40. Rxg7+ {[%emt 0:00:00]} Kf8 41. Bf4 {[%emt 0:00:00]} Kxg7 42. Bxc1 {[%emt 0:00:00]} Nd3 43. Be3 {[%emt 0:00:00]} c5 44. Kg3 {[%emt 0:00:00]} c4 45. Kf3 {[%emt 0:00:00]} h5 46. Ke2 {[%emt 0:00:00]} Kg6 47. Bd2 {[%emt 0:00:00]} Kf5 48. Kf3 {[%emt 0:00:00]} 1/2-1/2

[Event "34th MPL National U14G-ch 2022"]
[Site "Ahmedabad"]
[Date "2022.05.13"]
[Round "10.3"]
[White "Rajanya Datta"]
[Black "Shubhi Gupta"]
[Result "0-1"]
[ECO "C44"]
[WhiteElo "1589"]
[BlackElo "1613"]
[Annotator "NA RC COMBH"]
[PlyCount "56"]
[EventDate "2022.05.09"]
[EventType "swiss"]
[EventCountry "IND"]
[SourceTitle "playchess.com"]
[Source "ChessBase"]
[SourceQuality "1"]
[TimeControl "5400+30"]

1. e4 {[%emt 0:00:31]} e5 {[%emt 0:00:23]} 2. Nf3 {[%emt 0:00:10]} Nc6 {[%emt 0:00:09]} 3. c3 {[%emt 0:00:12]} d5 {[%emt 0:00:31]} 4. Qa4 {[%emt 0:00:07]} f6 {[%emt 0:01:19]} 5. d3 {[%emt 0:00:22]} Nge7 {[%emt 0:03:50]} 6. Be2 {[%emt 0:01:40]} Be6 {[%emt 0:00:51]} 7. O-O {[%emt 0:03:24]} Qd7 {[%emt 0:02:59]} 8. b4 {[%emt 0:00:30]} g5 {[%emt 0:01:56]} 9. b5 {[%emt 0:10:27]} Nd8 {[%emt 0:01:16]} 10. Re1 {[%emt 0:16:57]} h5 {[%emt 0:04:41]} 11. Nfd2 {[%emt 0:09:24]} Ng6 {[%emt 0:07:02]} 12. d4 {[%emt 0:07:07]} Kf7 13. dxe5 {[%emt 0:00:30]} Nxe5 14. exd5 {[%emt 0:00:30]} Bxd5 15. c4 {[%emt 0:00:30]} Be6 16. Bb2 {[%emt 0:00:30]} Bd6 17. Ne4 {[%emt 0:00:30]} Ng4 18. h3 {[%emt 0:00:30]} Bh2+ 19. Kh1 {[%emt 0:00:30]} Be5 20. Nbc3 {[%emt 0:00:30]} Bf5 21. Rad1 {[%emt 0:00:30]} Qe6 22. Bxg4 {[%emt 0:00:30]} hxg4 23. Nxg5+ {[%emt 0:00:30]} fxg5 24. Rd5 {[%emt 0:00:30]} gxh3 25. g3 {[%emt 0:00:30]} h2 26. Rdxe5 {[%emt 0:00:30]} Bg4 27. R1e3 {[%emt 0:00:30]} Qxe5 28. Rxe5 {[%emt 0:00:30]} Bf3# 0-1

[Event "34th MPL National U14G-ch 2022"]
[Site "Ahmedabad"]
[Date "2022.05.13"]
[Round "10.4"]
[White "Bhat Sannidhi Ramakrishna"]
[Black "Nivedita V C"]
[Result "1-0"]
[ECO "D02"]
[WhiteElo "1373"]
[BlackElo "1296"]
[Annotator "NA RC COMBH"]
[PlyCount "49"]
[EventDate "2022.05.09"]
[EventType "swiss"]
[EventCountry "IND"]
[SourceTitle "playchess.com"]
[Source "ChessBase"]
[SourceQuality "1"]
[TimeControl "5400+30"]

1. d4 {[%emt 0:00:05]} Nf6 {[%emt 0:00:14]} 2. Nf3 {[%emt 0:00:09]} e6 {[%emt 0:00:18]} 3. Bf4 {[%emt 0:00:08]} d5 {[%emt 0:00:22]} 4. e3 {[%emt 0:00:20]} Be7 {[%emt 0:00:46]} 5. Nbd2 {[%emt 0:01:03]} O-O {[%emt 0:00:13]} 6. Bd3 {[%emt 0:00:44]} c5 {[%emt 0:00:44]} 7. c3 {[%emt 0:00:18]} Nc6 {[%emt 0:00:45]} 8. Ne5 {[%emt 0:03:33]} Nxe5 {[%emt 0:01:29]} 9. dxe5 {[%emt 0:00:28]} Nd7 {[%emt 0:00:13]} 10. h4 {[%emt 0:02:34]} g6 {[%emt 0:07:35]} 11. Nf3 {[%emt 0:09:29]} c4 {[%emt 0:06:02]} 12. Bc2 {[%emt 0:01:51]} b5 {[%emt 0:00:46]} 13. Rh3 {[%emt 0:10:59]} b4 {[%emt 0:01:17]} 14. Bh6 {[%emt 0:00:49]} Re8 {[%emt 0:00:43]} 15. h5 {[%emt 0:06:47]} Qa5 {[%emt 0:04:07]} 16. hxg6 hxg6 {[%emt 0:00:30]} 17. Qd2 bxc3 {[%emt 0:00:30]} 18. bxc3 Ba3 {[%emt 0:00:30]} 19. Ke2 Bb2 {[%emt 0:00:30]} 20. Rah1 Nf8 {[%emt 0:00:30]} 21. Bg5 f6 {[%emt 0:00:30]} 22. Bxf6 Nh7 {[%emt 0:00:30]} 23. Rxh7 Ba6 {[%emt 0:00:30]} 24. Rh8+ Kf7 {[%emt 0:00:30]} 25. R1h7# 1-0

[Event "34th MPL National U14G-ch 2022"]
[Site "Ahmedabad"]
[Date "2022.05.13"]
[Round "10.5"]
[White "Pournami S"]
[Black "Sachi Jain"]
[Result "1/2-1/2"]
[ECO "B43"]
[WhiteElo "1376"]
[BlackElo "1768"]
[Annotator "NA RC COMBH"]
[PlyCount "62"]
[EventDate "2022.05.09"]
[EventType "swiss"]
[EventCountry "IND"]
[SourceTitle "playchess.com"]
[Source "ChessBase"]
[SourceQuality "1"]
[TimeControl "5400+30"]

1. e4 {[%emt 0:00:03]} c5 {[%emt 0:00:22]} 2. Nf3 {[%emt 0:00:06]} e6 {[%emt 0:00:33]} 3. d4 {[%emt 0:00:07]} cxd4 {[%emt 0:00:09]} 4. Nxd4 {[%emt 0:00:07]} a6 {[%emt 0:00:15]} 5. Nc3 {[%emt 0:00:09]} Qc7 {[%emt 0:01:09]} 6. a3 {[%emt 0:00:32]} b5 {[%emt 0:00:44]} 7. g3 {[%emt 0:00:28]} Bb7 {[%emt 0:01:00]} 8. Bg2 {[%emt 0:00:25]} Nf6 {[%emt 0:01:33]} 9. Bg5 {[%emt 0:00:40]} Be7 {[%emt 0:02:48]} 10. O-O {[%emt 0:00:49]} Nc6 {[%emt 0:10:30]} 11. Re1 {[%emt 0:02:10]} d6 {[%emt 0:00:57]} 12. Be3 {[%emt 0:13:34]} O-O {[%emt 0:02:44]} 13. f4 {[%emt 0:01:30]} Rac8 {[%emt 0:01:46]} 14. Qf3 {[%emt 0:04:57]} Nb8 {[%emt 0:09:28]} 15. f5 {[%emt 0:04:54]} e5 {[%emt 0:04:04]} 16. Nb3 {[%emt 0:01:09]} Rfd8 {[%emt 0:01:01]} 17. Rad1 {[%emt 0:02:40]} Nbd7 18. g4 {[%emt 0:00:30]} Nc5 19. Nxc5 {[%emt 0:00:30]} dxc5 20. g5 {[%emt 0:00:30]} Ne8 21. h4 {[%emt 0:00:30]} f6 22. Qh5 {[%emt 0:00:30]} Bf8 23. Qg4 {[%emt 0:00:30]} b4 24. Ne2 {[%emt 0:00:30]} Rxd1 25. Rxd1 {[%emt 0:00:30]} Rd8 26. Rxd8 {[%emt 0:00:30]} Qxd8 27. Ng3 {[%emt 0:00:30]} bxa3 28. bxa3 {[%emt 0:00:30]} Bc6 29. Nh5 {[%emt 0:00:30]} Kh8 30. gxf6 {[%emt 0:00:30]} Nxf6 31. Nxf6 {[%emt 0:00:30]} Qxf6 1/2-1/2

[Event "34th MPL National U14G-ch 2022"]
[Site "Ahmedabad"]
[Date "2022.05.13"]
[Round "10.6"]
[White "Rout Yashita"]
[Black "Yashvi Jain"]
[Result "1-0"]
[ECO "C95"]
[WhiteElo "1718"]
[BlackElo "1362"]
[Annotator "NA RC COMBH"]
[PlyCount "97"]
[EventDate "2022.05.09"]
[EventType "swiss"]
[EventCountry "IND"]
[SourceTitle "playchess.com"]
[Source "ChessBase"]
[SourceQuality "1"]
[TimeControl "5400+30"]

1. e4 {[%emt 0:00:51]} e5 {[%emt 0:00:02]} 2. Nf3 {[%emt 0:00:30]} Nc6 {[%emt 0:00:13]} 3. Bb5 {[%emt 0:00:28]} a6 {[%emt 0:00:49]} 4. Ba4 {[%emt 0:00:19]} Nf6 {[%emt 0:00:09]} 5. O-O {[%emt 0:00:23]} b5 {[%emt 0:02:00]} 6. Bb3 {[%emt 0:00:07]} Be7 {[%emt 0:00:09]} 7. Re1 {[%emt 0:00:30]} d6 {[%emt 0:00:20]} 8. c3 {[%emt 0:00:28]} O-O {[%emt 0:00:13]} 9. h3 {[%emt 0:00:30]} Nb8 {[%emt 0:00:22]} 10. d4 {[%emt 0:00:53]} Nbd7 {[%emt 0:00:19]} 11. Nbd2 {[%emt 0:01:50]} Bb7 {[%emt 0:01:09]} 12. Bc2 {[%emt 0:00:53]} Re8 {[%emt 0:01:18]} 13. Nf1 {[%emt 0:00:33]} Bf8 {[%emt 0:00:37]} 14. Ng3 {[%emt 0:00:19]} g6 {[%emt 0:00:12]} 15. b3 {[%emt 0:00:49]} c6 {[%emt 0:07:16]} 16. Bg5 {[%emt 0:07:07]} Qc7 {[%emt 0:02:46]} 17. dxe5 {[%emt 0:01:19]} dxe5 {[%emt 0:00:15]} 18. Qe2 {[%emt 0:05:18]} Bg7 {[%emt 0:03:16]} 19. b4 {[%emt 0:03:16]} c5 {[%emt 0:02:00]} 20. a4 {[%emt 0:02:49]} cxb4 {[%emt 0:05:33]} 21. cxb4 {[%emt 0:00:08]} Bc6 {[%emt 0:03:54]} 22. axb5 {[%emt 0:04:43]} Bxb5 {[%emt 0:00:55]} 23. Bd3 {[%emt 0:00:18]} Qc3 24. Bxb5 {[%emt 0:00:30]} axb5 25. Rxa8 {[%emt 0:00:30]} Rxa8 26. Qxb5 {[%emt 0:00:30]} Rb8 27. Bd2 {[%emt 0:00:30]} Rxb5 28. Bxc3 {[%emt 0:00:30]} Bf8 29. Ra1 {[%emt 0:00:30]} Bd6 30. Kf1 {[%emt 0:00:30]} Rb6 31. Rb1 {[%emt 0:00:30]} Nc5 32. Bxe5 {[%emt 0:00:30]} Bxe5 33. Nxe5 {[%emt 0:00:30]} Nfxe4 34. Nxe4 {[%emt 0:00:30]} Nxe4 35. Rb2 {[%emt 0:00:30]} f6 36. Nf3 {[%emt 0:00:30]} Nc3 37. Rb3 {[%emt 0:00:30]} Nd5 38. b5 {[%emt 0:00:30]} Kf7 39. Nd2 {[%emt 0:00:30]} Ke6 40. Nc4 {[%emt 0:00:30]} Rb8 41. b6 {[%emt 0:00:30]} Kd7 42. b7 {[%emt 0:00:30]} Nf4 43. Na5 {[%emt 0:00:30]} Ne6 44. Rd3+ {[%emt 0:00:30]} Kc7 45. Rc3+ {[%emt 0:00:30]} Kd7 46. Rc6 {[%emt 0:00:30]} Nd8 47. Rxf6 {[%emt 0:00:30]} Nxb7 48. Rf7+ {[%emt 0:00:30]} Kc8 49. Nc6 {[%emt 0:00:30]} 1-0

[Event "34th MPL National U14G-ch 2022"]
[Site "Ahmedabad"]
[Date "2022.05.13"]
[Round "10.7"]
[White "Sneha Halder"]
[Black "Krishika Garg"]
[Result "1-0"]
[ECO "A01"]
[WhiteElo "1557"]
[BlackElo "1318"]
[Annotator "NA RC COMBH"]
[PlyCount "75"]
[EventDate "2022.05.09"]
[EventType "swiss"]
[EventCountry "IND"]
[SourceTitle "playchess.com"]
[Source "ChessBase"]
[SourceQuality "1"]
[TimeControl "5400+30"]

1. b3 {[%emt 0:00:32]} Nf6 {[%emt 0:00:23]} 2. Bb2 {[%emt 0:00:04]} d5 {[%emt 0:00:13]} 3. g3 {[%emt 0:00:03]} c5 {[%emt 0:00:14]} 4. Bg2 {[%emt 0:00:05]} Nc6 {[%emt 0:00:28]} 5. f4 {[%emt 0:00:05]} Bf5 {[%emt 0:01:14]} 6. Nf3 {[%emt 0:00:25]} e6 {[%emt 0:01:18]} 7. a3 {[%emt 0:01:05]} Be7 {[%emt 0:01:31]} 8. d3 {[%emt 0:03:53]} Ng4 {[%emt 0:03:49]} 9. Bc1 {[%emt 0:02:55]} h5 {[%emt 0:11:18]} 10. h3 {[%emt 0:00:11]} Nf6 {[%emt 0:00:00]} 11. Bb2 {[%emt 0:00:12]} d4 {[%emt 0:06:45]} 12. Nbd2 {[%emt 0:01:18]} Nd5 {[%emt 0:02:17]} 13. Nf1 {[%emt 0:00:14]} h4 {[%emt 0:06:57]} 14. Qd2 {[%emt 0:00:48]} hxg3 {[%emt 0:07:54]} 15. e4 {[%emt 0:00:24]} dxe3 {[%emt 0:00:14]} 16. Nxe3 {[%emt 0:00:02]} Nxe3 {[%emt 0:04:57]} 17. Qxe3 {[%emt 0:00:06]} Bf6 {[%emt 0:02:37]} 18. Ne5 {[%emt 0:01:47]} Nd4 {[%emt 0:01:38]} 19. O-O-O {[%emt 0:00:46]} Rb8 20. Kb1 {[%emt 0:00:30]} g5 21. fxg5 {[%emt 0:00:30]} Bxg5 22. Qxg3 {[%emt 0:00:30]} Rh4 23. Bc1 {[%emt 0:00:30]} f6 24. Bxg5 {[%emt 0:00:30]} fxg5 25. Rde1 {[%emt 0:00:30]} Qe7 26. Ng6 {[%emt 0:00:30]} Bxg6 27. Qxb8+ {[%emt 0:00:30]} Kf7 28. Qxa7 {[%emt 0:00:30]} Bf5 29. Qxb7 {[%emt 0:00:30]} Qxb7 30. Bxb7 {[%emt 0:00:30]} Bxh3 31. a4 {[%emt 0:00:30]} g4 32. a5 {[%emt 0:00:30]} Rh8 33. a6 {[%emt 0:00:30]} Nb5 34. Re5 {[%emt 0:00:30]} Nd6 35. Bg2 {[%emt 0:00:30]} Nf5 36. a7 {[%emt 0:00:30]} c4 37. a8=Q {[%emt 0:00:30]} Rxa8 38. Bxa8 {[%emt 0:00:30]} 1-0

[Event "34th MPL National U14G-ch 2022"]
[Site "Ahmedabad"]
[Date "2022.05.13"]
[Round "10.8"]
[White "Debapriya Manna"]
[Black "Shreya G Hipparagi"]
[Result "*"]
[ECO "E07"]
[WhiteElo "1384"]
[BlackElo "1548"]
[Annotator "NA RC COMBH"]
[PlyCount "28"]
[EventDate "2022.05.09"]
[EventType "swiss"]
[EventCountry "IND"]
[SourceTitle "playchess.com"]
[Source "ChessBase"]
[SourceQuality "1"]
[TimeControl "5400+30"]

1. c4 {[%emt 0:00:30]} e6 {[%emt 0:01:01]} 2. g3 {[%emt 1:31:00]} Nf6 {[%emt 0:00:25]} 3. Bg2 {[%emt 0:00:54]} d5 {[%emt 0:00:43]} 4. d4 {[%emt 0:00:14]} Be7 {[%emt 0:01:35]} 5. Nc3 {[%emt 0:01:17]} O-O {[%emt 0:01:10]} 6. Nf3 {[%emt 0:00:39]} c6 {[%emt 0:05:59]} 7. O-O {[%emt 0:02:04]} Nbd7 {[%emt 0:01:33]} 8. b3 {[%emt 0:01:56]} Re8 {[%emt 0:02:01]} 9. Bb2 {[%emt 1:27:16]} b6 {[%emt 0:02:43]} 10. Rc1 {[%emt 0:01:47]} Ba6 {[%emt 0:01:06]} 11. Nd2 {[%emt 0:04:52]} Rc8 {[%emt 0:03:19]} 12. Re1 {[%emt 0:04:07]} Bb4 {[%emt 0:09:15]} 13. e4 {[%emt 0:11:01]} dxc4 {[%emt 0:02:53]} 14. Nxc4 {[%emt 0:02:19] 0.89} e5 {[%emt 0:08:06]} *